[Event "Early-Titled-Tuesday-Blitz-October-03-2023"]
[Site "Chess.com"]
[Date "2023.10.03"]
[Round "8"]
[White "vasblesk"]
[Black "Grossboss19"]
[Result "1-0"]
[WhiteElo "2703"]
[BlackElo "2530"]
[TimeControl "180+1"]
[EndTime "9:29:31 PDT"]
[Termination "vasblesk won by checkmate"]

1. Nf3 {[%clk 0:03:00.9]} 1... d5 {[%clk 0:02:53.7]} 2. g3 {[%clk 0:03:00.9]}
2... Nf6 {[%clk 0:02:52.3]} 3. Bg2 {[%clk 0:02:57.4]} 3... c6 {[%clk 0:02:51.9]}
4. O-O {[%clk 0:02:58.3]} 4... g6 {[%clk 0:02:51.9]} 5. d3 {[%clk 0:02:58.1]}
5... Bg7 {[%clk 0:02:52.4]} 6. Nbd2 {[%clk 0:02:56.2]} 6... O-O {[%clk
0:02:52.3]} 7. e4 {[%clk 0:02:56.8]} 7... Re8 {[%clk 0:02:50.7]} 8. e5 {[%clk
0:02:55.7]} 8... Nfd7 {[%clk 0:02:46.7]} 9. d4 {[%clk 0:02:54.3]} 9... e6 {[%clk
0:02:44.6]} 10. c3 {[%clk 0:02:50.3]} 10... c5 {[%clk 0:02:44]} 11. Re1 {[%clk
0:02:47.1]} 11... Nc6 {[%clk 0:02:42.9]} 12. Nb3 {[%clk 0:02:44.1]} 12... b6
{[%clk 0:02:40.4]} 13. h4 {[%clk 0:02:41.5]} 13... a5 {[%clk 0:02:32.5]} 14. Bg5
{[%clk 0:02:33.1]} 14... Qc7 {[%clk 0:02:23.7]} 15. Rc1 {[%clk 0:02:21.9]} 15...
a4 {[%clk 0:02:19.5]} 16. Na1 {[%clk 0:02:21.1]} 16... b5 {[%clk 0:02:17.3]} 17.
Nc2 {[%clk 0:02:06.7]} 17... Qb8 {[%clk 0:02:07.7]} 18. Ne3 {[%clk 0:02:02.4]}
18... h6 {[%clk 0:01:52.1]} 19. Bf4 {[%clk 0:02:01]} 19... Na5 {[%clk
0:01:46.6]} 20. Nxd5 {[%clk 0:01:33.4]} 20... exd5 {[%clk 0:01:33.9]} 21. e6
{[%clk 0:01:31.8]} 21... Qb7 {[%clk 0:01:20.6]} 22. exd7 {[%clk 0:01:30.2]}
22... Bxd7 {[%clk 0:01:19.7]} 23. Rxe8+ {[%clk 0:01:22]} 23... Rxe8 {[%clk
0:01:18.6]} 24. dxc5 {[%clk 0:01:22.6]} 24... Bg4 {[%clk 0:01:10]} 25. b4 {[%clk
0:00:59.2]} 25... Nc4 {[%clk 0:00:41.7]} 26. Qd3 {[%clk 0:00:50.9]} 26... Bf5
{[%clk 0:00:37]} 27. Qf1 {[%clk 0:00:36]} 27... Be4 {[%clk 0:00:34.9]} 28. Re1
{[%clk 0:00:30.5]} 28... Bxc3 {[%clk 0:00:26.4]} 29. Rc1 {[%clk 0:00:29.7]}
29... Bxb4 {[%clk 0:00:24.3]} 30. Bxh6 {[%clk 0:00:29.3]} 30... Bxc5 {[%clk
0:00:21.9]} 31. h5 {[%clk 0:00:24.1]} 31... d4 {[%clk 0:00:20.1]} 32. Qd1 {[%clk
0:00:19.9]} 32... Ba3 {[%clk 0:00:17.3]} 33. Qxd4 {[%clk 0:00:16.7]} 33... Bb2
{[%clk 0:00:17.5]} 34. Rc3 {[%clk 0:00:16.1]} 34... Bxc3 {[%clk 0:00:16]} 35.
Qxc3 {[%clk 0:00:17]} 35... f6 {[%clk 0:00:14.5]} 36. Qxf6 {[%clk 0:00:16.9]}
36... Qf7 {[%clk 0:00:15.1]} 37. Qxf7+ {[%clk 0:00:17.2]} 37... Kxf7 {[%clk
0:00:16]} 38. Ng5+ {[%clk 0:00:17.7]} 38... Kg8 {[%clk 0:00:15.6]} 39. Nxe4
{[%clk 0:00:18]} 39... Rd8 {[%clk 0:00:14.3]} 40. hxg6 {[%clk 0:00:17.2]} 40...
Ne5 {[%clk 0:00:11.3]} 41. Nf6+ {[%clk 0:00:16.8]} 41... Kh8 {[%clk 0:00:11.8]}
42. g7# {[%clk 0:00:17.2]} 1-0

[Event "Early-Titled-Tuesday-Blitz-October-03-2023"]
[Site "Chess.com"]
[Date "2023.10.03"]
[Round "8"]
[White "grandemestregringo"]
[Black "vedantgoswami"]
[Result "1-0"]
[WhiteElo "2530"]
[BlackElo "2396"]
[TimeControl "180+1"]
[EndTime "9:29:32 PDT"]
[Termination "grandemestregringo won on time"]

1. e4 {[%clk 0:03:00.9]} 1... c6 {[%clk 0:02:55.9]} 2. d4 {[%clk 0:02:59.4]}
2... d5 {[%clk 0:02:55.1]} 3. e5 {[%clk 0:02:58.7]} 3... Bf5 {[%clk 0:02:54.3]}
4. h4 {[%clk 0:02:58.2]} 4... h5 {[%clk 0:02:52.6]} 5. Bd3 {[%clk 0:02:57.6]}
5... Bxd3 {[%clk 0:02:51.5]} 6. Qxd3 {[%clk 0:02:57.8]} 6... e6 {[%clk
0:02:51.6]} 7. Nf3 {[%clk 0:02:57.2]} 7... Qa5+ {[%clk 0:02:47.4]} 8. Nbd2
{[%clk 0:02:56.8]} 8... Qa6 {[%clk 0:02:47.9]} 9. c4 {[%clk 0:02:56.9]} 9... Nd7
{[%clk 0:02:44.8]} 10. O-O {[%clk 0:02:55.3]} 10... Nh6 {[%clk 0:02:43.9]} 11.
b3 {[%clk 0:02:43]} 11... Nf5 {[%clk 0:02:41.7]} 12. a4 {[%clk 0:02:42.4]} 12...
Bb4 {[%clk 0:02:39.7]} 13. Ba3 {[%clk 0:02:41.9]} 13... Bxa3 {[%clk 0:02:30.5]}
14. Rxa3 {[%clk 0:02:29.2]} 14... Qa5 {[%clk 0:02:11.9]} 15. b4 {[%clk
0:02:13.6]} 15... Qc7 {[%clk 0:02:00.7]} 16. cxd5 {[%clk 0:02:08.5]} 16... cxd5
{[%clk 0:01:58.6]} 17. Rc3 {[%clk 0:02:07.1]} 17... Qb6 {[%clk 0:01:54.6]} 18.
b5 {[%clk 0:02:03.8]} 18... a6 {[%clk 0:01:45.9]} 19. Rb1 {[%clk 0:01:41.9]}
19... O-O {[%clk 0:01:34.9]} 20. Nf1 {[%clk 0:01:41.5]} 20... axb5 {[%clk
0:01:30.8]} 21. Rxb5 {[%clk 0:01:40.3]} 21... Qa6 {[%clk 0:01:29.4]} 22. Ng3
{[%clk 0:01:39.7]} 22... Nxg3 {[%clk 0:01:27.5]} 23. fxg3 {[%clk 0:01:39.1]}
23... Rac8 {[%clk 0:01:00.2]} 24. Ng5 {[%clk 0:01:36.1]} 24... g6 {[%clk
0:00:57.8]} 25. Rxc8 {[%clk 0:01:09.5]} 25... Rxc8 {[%clk 0:00:56.9]} 26. Qf3
{[%clk 0:01:10.2]} 26... Rf8 {[%clk 0:00:47.4]} 27. Kh2 {[%clk 0:01:05.2]} 27...
b6 {[%clk 0:00:43.8]} 28. Qd1 {[%clk 0:00:58.9]} 28... Qc8 {[%clk 0:00:39.2]}
29. Rb3 {[%clk 0:00:48]} 29... Qc4 {[%clk 0:00:37.7]} 30. g4 {[%clk 0:00:48.2]}
30... hxg4 {[%clk 0:00:34.4]} 31. Rg3 {[%clk 0:00:42.8]} 31... Kg7 {[%clk
0:00:29.1]} 32. Qxg4 {[%clk 0:00:41.2]} 32... Rh8 {[%clk 0:00:07.6]} 33. Nxe6+
{[%clk 0:00:40]} 33... Kg8 {[%clk 0:00:06.2]} 34. h5 {[%clk 0:00:30.9]} 34...
Nxe5 {[%clk 0:00:02.4]} 35. Qh4 {[%clk 0:00:20]} 1-0

[Event "Early-Titled-Tuesday-Blitz-October-03-2023"]
[Site "Chess.com"]
[Date "2023.10.03"]
[Round "8"]
[White "ljuks68"]
[Black "Fore_Man"]
[Result "0-1"]
[WhiteElo "2399"]
[BlackElo "2268"]
[TimeControl "180+1"]
[EndTime "9:29:32 PDT"]
[Termination "Fore_Man won on time"]

1. e4 {[%clk 0:01:52.2]} 1... c5 {[%clk 0:02:56.4]} 2. Nf3 {[%clk 0:01:50.1]}
2... Nc6 {[%clk 0:02:55.9]} 3. d4 {[%clk 0:01:45.7]} 3... cxd4 {[%clk
0:02:56.8]} 4. Nxd4 {[%clk 0:01:46.1]} 4... g6 {[%clk 0:02:57.4]} 5. c4 {[%clk
0:01:45.6]} 5... Bg7 {[%clk 0:02:57.4]} 6. Be3 {[%clk 0:01:46.2]} 6... Nf6
{[%clk 0:02:57.8]} 7. Nc3 {[%clk 0:01:46.5]} 7... d6 {[%clk 0:02:58.3]} 8. Be2
{[%clk 0:01:45.9]} 8... O-O {[%clk 0:02:58.8]} 9. O-O {[%clk 0:01:44.8]} 9... a6
{[%clk 0:02:58.7]} 10. Rc1 {[%clk 0:01:41.8]} 10... Nxd4 {[%clk 0:02:58.7]} 11.
Bxd4 {[%clk 0:01:41.3]} 11... Bd7 {[%clk 0:02:59.6]} 12. b4 {[%clk 0:01:40]}
12... b5 {[%clk 0:02:53.6]} 13. c5 {[%clk 0:01:36.3]} 13... dxc5 {[%clk
0:02:51.5]} 14. Bxc5 {[%clk 0:01:35.7]} 14... Bc6 {[%clk 0:02:49.6]} 15. Qxd8
{[%clk 0:01:33.3]} 15... Rfxd8 {[%clk 0:02:49.9]} 16. Bxe7 {[%clk 0:01:02.8]}
16... Rd7 {[%clk 0:02:47.8]} 17. Bxf6 {[%clk 0:00:55.3]} 17... Bxf6 {[%clk
0:02:48.7]} 18. Bf3 {[%clk 0:00:55.3]} 18... Rd2 {[%clk 0:02:33]} 19. e5 {[%clk
0:00:45.3]} 19... Bxf3 {[%clk 0:02:31.7]} 20. exf6 {[%clk 0:00:45.5]} 20... Bg4
{[%clk 0:02:26.7]} 21. f3 {[%clk 0:00:41.8]} 21... Be6 {[%clk 0:02:24.7]} 22.
Rfd1 {[%clk 0:00:36.7]} 22... Rxd1+ {[%clk 0:02:21.7]} 23. Rxd1 {[%clk
0:00:36.3]} 23... h5 {[%clk 0:02:18.4]} 24. a3 {[%clk 0:00:23.8]} 24... g5
{[%clk 0:02:17.5]} 25. Ne4 {[%clk 0:00:23]} 25... g4 {[%clk 0:02:12.8]} 26. Nc5
{[%clk 0:00:21.8]} 26... Bc4 {[%clk 0:02:10.3]} 27. Rd6 {[%clk 0:00:19.2]} 27...
a5 {[%clk 0:02:04.8]} 28. fxg4 {[%clk 0:00:16]} 28... axb4 {[%clk 0:02:02.5]}
29. axb4 {[%clk 0:00:15.8]} 29... Ra1+ {[%clk 0:02:01]} 30. Kf2 {[%clk
0:00:15.7]} 30... hxg4 {[%clk 0:02:01.6]} 31. Rd4 {[%clk 0:00:14.5]} 31... Ra2+
{[%clk 0:02:00.1]} 32. Kg3 {[%clk 0:00:14.5]} 32... Rb2 {[%clk 0:02:00.7]} 33.
Rxg4+ {[%clk 0:00:13.8]} 33... Kh7 {[%clk 0:02:00.3]} 34. Rg7+ {[%clk 0:00:12]}
34... Kh6 {[%clk 0:02:00.2]} 35. Nd7 {[%clk 0:00:12.5]} 35... Bd5 {[%clk
0:01:54]} 36. Kh3 {[%clk 0:00:10]} 36... Be6+ {[%clk 0:01:51.4]} 37. g4 {[%clk
0:00:07.8]} 37... Bxd7 {[%clk 0:01:41.8]} 38. Rxf7 {[%clk 0:00:08.1]} 38... Be6
{[%clk 0:01:37.5]} 39. Re7 {[%clk 0:00:08.2]} 39... Bc4 {[%clk 0:01:35.5]} 40.
Kg3 {[%clk 0:00:06.1]} 40... Rb3+ {[%clk 0:01:34.9]} 41. Kf4 {[%clk 0:00:05.7]}
41... Rxb4 {[%clk 0:01:35.2]} 42. h4 {[%clk 0:00:05.5]} 42... Be6+ {[%clk
0:01:26.2]} 43. Ke5 {[%clk 0:00:04.4]} 43... Bxg4 {[%clk 0:01:24.4]} 44. Rb7
{[%clk 0:00:03]} 44... Bf3 {[%clk 0:01:17.7]} 45. Rb6 {[%clk 0:00:02.5]} 45...
Be2 {[%clk 0:01:09.3]} 46. Ke6 {[%clk 0:00:02.4]} 46... Kg6 {[%clk 0:01:05]} 47.
Ke7 {[%clk 0:00:01.6]} 47... Re4+ {[%clk 0:01:02.5]} 48. Kf8 {[%clk 0:00:01.8]}
48... Bc4 {[%clk 0:00:50.1]} 49. f7+ {[%clk 0:00:02.7]} 49... Re6 {[%clk
0:00:45.6]} 0-1

[Event "Early-Titled-Tuesday-Blitz-October-03-2023"]
[Site "Chess.com"]
[Date "2023.10.03"]
[Round "8"]
[White "Kyrie-Eleven"]
[Black "JohnWhite1952"]
[Result "1-0"]
[WhiteElo "2300"]
[BlackElo "2027"]
[TimeControl "180+1"]
[EndTime "9:29:33 PDT"]
[Termination "Kyrie-Eleven won by resignation"]

1. d4 {[%clk 0:02:49.1]} 1... e6 {[%clk 0:02:55.5]} 2. c4 {[%clk 0:02:24.6]}
2... d5 {[%clk 0:02:54.6]} 3. Nc3 {[%clk 0:01:50.6]} 3... Nf6 {[%clk 0:02:54.1]}
4. cxd5 {[%clk 0:01:48.1]} 4... Nxd5 {[%clk 0:02:51.3]} 5. e4 {[%clk 0:01:47.4]}
5... Nxc3 {[%clk 0:02:49.1]} 6. bxc3 {[%clk 0:01:48.3]} 6... c5 {[%clk
0:02:47.6]} 7. Nf3 {[%clk 0:01:48]} 7... Nc6 {[%clk 0:02:47]} 8. Bb5 {[%clk
0:01:32.4]} 8... cxd4 {[%clk 0:02:43]} 9. Bxc6+ {[%clk 0:01:29.8]} 9... bxc6
{[%clk 0:02:42.4]} 10. cxd4 {[%clk 0:01:30.5]} 10... Bb4+ {[%clk 0:02:34.9]} 11.
Bd2 {[%clk 0:01:28.8]} 11... Qa5 {[%clk 0:02:31.1]} 12. O-O {[%clk 0:01:10.7]}
12... Ba6 {[%clk 0:02:26.7]} 13. Re1 {[%clk 0:01:02.4]} 13... O-O {[%clk
0:02:24]} 14. Qc2 {[%clk 0:00:53.6]} 14... Bxd2 {[%clk 0:02:10.6]} 15. Nxd2
{[%clk 0:00:48.3]} 15... Rac8 {[%clk 0:02:10.4]} 16. Nb3 {[%clk 0:00:37.9]}
16... Qb4 {[%clk 0:02:01.7]} 17. Red1 {[%clk 0:00:33.9]} 17... Bc4 {[%clk
0:01:52.4]} 18. Nc5 {[%clk 0:00:32.2]} 18... Rfd8 {[%clk 0:01:44.2]} 19. Rab1
{[%clk 0:00:31]} 19... Qa3 {[%clk 0:00:48.2]} 20. Qxc4 {[%clk 0:00:23.8]} 20...
a5 {[%clk 0:00:41.3]} 21. Qb3 {[%clk 0:00:19]} 21... Qxb3 {[%clk 0:00:35.4]} 22.
Rxb3 {[%clk 0:00:19.9]} 22... a4 {[%clk 0:00:33]} 23. Nxa4 {[%clk 0:00:19]}
23... Ra8 {[%clk 0:00:32.1]} 24. Nc3 {[%clk 0:00:19.2]} 24... c5 {[%clk
0:00:30.4]} 25. d5 {[%clk 0:00:19.6]} 25... exd5 {[%clk 0:00:27.8]} 26. exd5
{[%clk 0:00:20.5]} 26... Rd6 {[%clk 0:00:27.2]} 27. Ne4 {[%clk 0:00:18.9]} 27...
Rdd8 {[%clk 0:00:22.4]} 28. Rb2 {[%clk 0:00:18.6]} 28... c4 {[%clk 0:00:21.2]}
29. f3 {[%clk 0:00:18]} 29... Ra3 {[%clk 0:00:18.7]} 30. d6 {[%clk 0:00:18]}
30... c3 {[%clk 0:00:16.8]} 31. Rc2 {[%clk 0:00:18.6]} 31... f5 {[%clk
0:00:09.9]} 32. Nxc3 {[%clk 0:00:18.6]} 32... Rc8 {[%clk 0:00:04.4]} 33. d7
{[%clk 0:00:17.8]} 33... Rd8 {[%clk 0:00:04.7]} 34. Nb5 {[%clk 0:00:17.7]} 1-0

[Event "Early-Titled-Tuesday-Blitz-October-03-2023"]
[Site "Chess.com"]
[Date "2023.10.03"]
[Round "8"]
[White "Beca95"]
[Black "Alexchess1984"]
[Result "1/2-1/2"]
[WhiteElo "3003"]
[BlackElo "2728"]
[TimeControl "180+1"]
[EndTime "9:29:34 PDT"]
[Termination "Game drawn - insufficient material"]

1. d4 {[%clk 0:03:00.9]} 1... Nf6 {[%clk 0:02:59.4]} 2. c4 {[%clk 0:03:01.5]}
2... c5 {[%clk 0:02:59.2]} 3. d5 {[%clk 0:03:01.6]} 3... b5 {[%clk 0:02:58.8]}
4. cxb5 {[%clk 0:03:02.1]} 4... a6 {[%clk 0:02:58.1]} 5. e3 {[%clk 0:03:03]}
5... e6 {[%clk 0:02:57.2]} 6. Nc3 {[%clk 0:02:55.8]} 6... exd5 {[%clk 0:02:57]}
7. Nxd5 {[%clk 0:02:55.8]} 7... Be7 {[%clk 0:02:57.4]} 8. Nf3 {[%clk 0:02:53.2]}
8... O-O {[%clk 0:02:51.6]} 9. Nxe7+ {[%clk 0:02:38.8]} 9... Qxe7 {[%clk
0:02:49.4]} 10. Be2 {[%clk 0:02:38.6]} 10... axb5 {[%clk 0:02:45.1]} 11. Bxb5
{[%clk 0:02:38]} 11... Bb7 {[%clk 0:02:38.2]} 12. O-O {[%clk 0:02:37.2]} 12...
Nc6 {[%clk 0:02:30.8]} 13. b3 {[%clk 0:02:37.2]} 13... Ne4 {[%clk 0:02:28.8]}
14. Bb2 {[%clk 0:02:37]} 14... Rad8 {[%clk 0:02:24.5]} 15. Qd5 {[%clk
0:02:27.8]} 15... Ba8 {[%clk 0:02:13.2]} 16. Qh5 {[%clk 0:02:24.1]} 16... d5
{[%clk 0:01:57]} 17. Bxc6 {[%clk 0:02:15.1]} 17... Bxc6 {[%clk 0:01:55.4]} 18.
Qe5 {[%clk 0:02:15.8]} 18... Qxe5 {[%clk 0:01:50]} 19. Nxe5 {[%clk 0:02:16.7]}
19... Bb5 {[%clk 0:01:45.1]} 20. Rfc1 {[%clk 0:02:17.4]} 20... f6 {[%clk
0:01:43]} 21. f3 {[%clk 0:02:17.7]} 21... fxe5 {[%clk 0:01:30.1]} 22. fxe4
{[%clk 0:02:17.2]} 22... dxe4 {[%clk 0:01:29.5]} 23. Rxc5 {[%clk 0:02:15.7]}
23... Rd2 {[%clk 0:01:27.8]} 24. Rxb5 {[%clk 0:02:05.5]} 24... Rxb2 {[%clk
0:01:26.8]} 25. Rf1 {[%clk 0:01:58]} 25... Rd8 {[%clk 0:01:26.2]} 26. Rxe5
{[%clk 0:01:43.5]} 26... h6 {[%clk 0:01:24.4]} 27. Rxe4 {[%clk 0:01:41.7]} 27...
Rdd2 {[%clk 0:01:24.9]} 28. Rg4 {[%clk 0:01:41.7]} 28... Rxa2 {[%clk 0:01:24.5]}
29. h4 {[%clk 0:01:40.2]} 29... Rd3 {[%clk 0:01:12.9]} 30. Rc1 {[%clk
0:01:38.4]} 30... Ra7 {[%clk 0:01:09.5]} 31. Rc8+ {[%clk 0:01:25.8]} 31... Kh7
{[%clk 0:01:09.2]} 32. b4 {[%clk 0:01:03.3]} 32... Rxe3 {[%clk 0:01:07.9]} 33.
b5 {[%clk 0:01:03.5]} 33... Rb3 {[%clk 0:01:03.6]} 34. Rb8 {[%clk 0:01:03.7]}
34... Rf7 {[%clk 0:00:57.7]} 35. Kh2 {[%clk 0:00:55.9]} 35... Re7 {[%clk
0:00:48]} 36. b6 {[%clk 0:00:53.3]} 36... Re6 {[%clk 0:00:47.5]} 37. Rb7 {[%clk
0:00:52.8]} 37... Rg6 {[%clk 0:00:47.2]} 38. Rxg6 {[%clk 0:00:51.5]} 38... Kxg6
{[%clk 0:00:48.1]} 39. Rb8 {[%clk 0:00:52.1]} 39... Kh5 {[%clk 0:00:47.4]} 40.
g3 {[%clk 0:00:39.2]} 40... Kg4 {[%clk 0:00:39.1]} 41. Rg8 {[%clk 0:00:38.6]}
41... Rb2+ {[%clk 0:00:36.1]} 42. Kg1 {[%clk 0:00:38.8]} 42... g5 {[%clk
0:00:35]} 43. hxg5 {[%clk 0:00:37.9]} 43... hxg5 {[%clk 0:00:32.7]} 44. Rg6
{[%clk 0:00:36.9]} 44... Kxg3 {[%clk 0:00:31.6]} 45. Rxg5+ {[%clk 0:00:36.5]}
45... Kf4 {[%clk 0:00:31.9]} 46. Rg6 {[%clk 0:00:36.8]} 46... Ke5 {[%clk
0:00:31.2]} 47. Rg5+ {[%clk 0:00:35.5]} 47... Kd6 {[%clk 0:00:29.7]} 48. Rh5
{[%clk 0:00:35.9]} 48... Rxb6 {[%clk 0:00:26.3]} 49. Rh6+ {[%clk 0:00:36.4]}
49... Kc5 {[%clk 0:00:24.9]} 50. Rxb6 {[%clk 0:00:37.3]} 50... Kxb6 {[%clk
0:00:25.3]} 1/2-1/2

[Event "Early-Titled-Tuesday-Blitz-October-03-2023"]
[Site "Chess.com"]
[Date "2023.10.03"]
[Round "8"]
[White "Itk04"]
[Black "ama18"]
[Result "1-0"]
[WhiteElo "2733"]
[BlackElo "2541"]
[TimeControl "180+1"]
[EndTime "9:29:34 PDT"]
[Termination "Itk04 won by resignation"]

1. a3 {[%clk 0:02:59]} 1... Nf6 {[%clk 0:02:58.2]} 2. b4 {[%clk 0:02:52.2]} 2...
g6 {[%clk 0:02:58]} 3. Bb2 {[%clk 0:02:52.7]} 3... Bg7 {[%clk 0:02:58.7]} 4. e3
{[%clk 0:02:52.5]} 4... d6 {[%clk 0:02:59.1]} 5. d4 {[%clk 0:02:52.4]} 5... O-O
{[%clk 0:02:59.3]} 6. Nf3 {[%clk 0:02:51.8]} 6... Nbd7 {[%clk 0:02:57.9]} 7. c4
{[%clk 0:02:48.5]} 7... b6 {[%clk 0:02:56.9]} 8. Nbd2 {[%clk 0:02:48]} 8... Bb7
{[%clk 0:02:57.4]} 9. Be2 {[%clk 0:02:43.7]} 9... a5 {[%clk 0:02:57.9]} 10. O-O
{[%clk 0:02:43.6]} 10... Re8 {[%clk 0:02:58.4]} 11. d5 {[%clk 0:02:40.6]} 11...
e5 {[%clk 0:02:56.5]} 12. dxe6 {[%clk 0:02:30]} 12... fxe6 {[%clk 0:02:55.9]}
13. Qc2 {[%clk 0:02:30.6]} 13... Qe7 {[%clk 0:02:55.8]} 14. Rfd1 {[%clk
0:02:22.8]} 14... e5 {[%clk 0:02:56.1]} 15. Ng5 {[%clk 0:02:22.1]} 15... Rf8
{[%clk 0:02:49.1]} 16. Bf3 {[%clk 0:02:17.1]} 16... Bxf3 {[%clk 0:02:44.6]} 17.
Ndxf3 {[%clk 0:02:09.9]} 17... h6 {[%clk 0:02:41.7]} 18. Ne4 {[%clk 0:02:09.8]}
18... Nxe4 {[%clk 0:02:37]} 19. Qxe4 {[%clk 0:02:10.7]} 19... g5 {[%clk
0:02:37.6]} 20. Nd2 {[%clk 0:01:51.1]} 20... Nf6 {[%clk 0:02:34.8]} 21. Qc2
{[%clk 0:01:47.1]} 21... Qf7 {[%clk 0:02:30.9]} 22. Rf1 {[%clk 0:01:45.7]} 22...
axb4 {[%clk 0:02:27.9]} 23. axb4 {[%clk 0:01:45.1]} 23... Rxa1 {[%clk
0:02:28.8]} 24. Rxa1 {[%clk 0:01:39.3]} 24... Ng4 {[%clk 0:01:49.6]} 25. Ne4
{[%clk 0:01:35.4]} 25... Qh5 {[%clk 0:01:39.1]} 26. h3 {[%clk 0:01:32.1]} 26...
Nf6 {[%clk 0:01:39.4]} 27. Nxf6+ {[%clk 0:01:26.5]} 27... Bxf6 {[%clk
0:01:40.3]} 28. c5 {[%clk 0:01:11.7]} 28... bxc5 {[%clk 0:01:38.8]} 29. bxc5
{[%clk 0:01:12.6]} 29... dxc5 {[%clk 0:01:08.9]} 30. Qxc5 {[%clk 0:01:06.7]}
30... g4 {[%clk 0:01:07.4]} 31. Qc4+ {[%clk 0:01:03]} 31... Kh8 {[%clk
0:01:07.2]} 32. hxg4 {[%clk 0:00:57.7]} 32... Qh4 {[%clk 0:00:50]} 33. Qxc7
{[%clk 0:00:37.8]} 33... Bg7 {[%clk 0:00:35.4]} 34. g3 {[%clk 0:00:26.7]} 34...
Qxg4 {[%clk 0:00:17.9]} 35. Bxe5 {[%clk 0:00:25.5]} 35... Bxe5 {[%clk
0:00:17.9]} 36. Qxe5+ {[%clk 0:00:26.4]} 36... Kg8 {[%clk 0:00:18.5]} 37. Qd5+
{[%clk 0:00:25.3]} 37... Rf7 {[%clk 0:00:14]} 38. Ra7 {[%clk 0:00:18.3]} 38...
Qg6 {[%clk 0:00:13.8]} 39. Qxf7+ {[%clk 0:00:15.4]} 39... Qxf7 {[%clk
0:00:14.7]} 40. Rxf7 {[%clk 0:00:15.9]} 40... Kxf7 {[%clk 0:00:15.6]} 41. Kg2
{[%clk 0:00:16.8]} 1-0

[Event "Early-Titled-Tuesday-Blitz-October-03-2023"]
[Site "Chess.com"]
[Date "2023.10.03"]
[Round "8"]
[White "arminmusovic"]
[Black "MdChess1734"]
[Result "1-0"]
[WhiteElo "2511"]
[BlackElo "2382"]
[TimeControl "180+1"]
[EndTime "9:29:37 PDT"]
[Termination "arminmusovic won on time"]

1. a3 {[%clk 0:02:58.3]} 1... e5 {[%clk 0:02:54.5]} 2. d4 {[%clk 0:02:57.8]}
2... exd4 {[%clk 0:02:48.6]} 3. Qxd4 {[%clk 0:02:58.7]} 3... Nc6 {[%clk
0:02:49]} 4. Qa4 {[%clk 0:02:58.4]} 4... Bc5 {[%clk 0:02:47.5]} 5. Nf3 {[%clk
0:02:55.5]} 5... Nf6 {[%clk 0:02:43.8]} 6. Bg5 {[%clk 0:02:55.3]} 6... h6 {[%clk
0:02:42.6]} 7. Bh4 {[%clk 0:02:55]} 7... d6 {[%clk 0:02:36.7]} 8. Nc3 {[%clk
0:02:53.2]} 8... g5 {[%clk 0:02:29]} 9. Bg3 {[%clk 0:02:50.1]} 9... Qe7 {[%clk
0:02:28]} 10. O-O-O {[%clk 0:02:38.4]} 10... Bd7 {[%clk 0:02:26.9]} 11. Qc4
{[%clk 0:02:20.2]} 11... O-O-O {[%clk 0:02:18.7]} 12. e4 {[%clk 0:02:11.1]}
12... Ne5 {[%clk 0:01:55.8]} 13. Nxe5 {[%clk 0:02:03.5]} 13... dxe5 {[%clk
0:01:55.6]} 14. Nd5 {[%clk 0:01:52.9]} 14... Nxd5 {[%clk 0:01:55.1]} 15. exd5
{[%clk 0:01:52.8]} 15... Bd6 {[%clk 0:01:48.1]} 16. f3 {[%clk 0:01:49.3]} 16...
f5 {[%clk 0:01:45.7]} 17. Bf2 {[%clk 0:01:48.5]} 17... a6 {[%clk 0:01:45.2]} 18.
Qb3 {[%clk 0:01:37.3]} 18... Rde8 {[%clk 0:01:35.5]} 19. Ba7 {[%clk 0:01:31.1]}
19... b5 {[%clk 0:00:47.1]} 20. c4 {[%clk 0:01:30.4]} 20... Bc5 {[%clk
0:00:46.3]} 21. Bxc5 {[%clk 0:01:30.4]} 21... Qxc5 {[%clk 0:00:46.3]} 22. Kb1
{[%clk 0:01:31.1]} 22... e4 {[%clk 0:00:43]} 23. Rc1 {[%clk 0:01:26.5]} 23...
exf3 {[%clk 0:00:15.5]} 24. gxf3 {[%clk 0:01:20.8]} 24... Re3 {[%clk 0:00:14.5]}
25. Bd3 {[%clk 0:01:16.6]} 25... Qd4 {[%clk 0:00:13.9]} 26. Rhd1 {[%clk
0:01:16.8]} 26... Rhe8 {[%clk 0:00:13.3]} 27. cxb5 {[%clk 0:01:15.1]} 27... axb5
{[%clk 0:00:10.4]} 28. Bxb5 {[%clk 0:01:09.5]} 28... Rxb3 {[%clk 0:00:06.7]} 29.
Bxd7+ {[%clk 0:01:09.7]} 29... Kxd7 {[%clk 0:00:07.4]} 30. Rxd4 {[%clk
0:01:10.5]} 30... Re2 {[%clk 0:00:07.9]} 31. Rc2 {[%clk 0:01:10.6]} 31... Re1+
{[%clk 0:00:07.5]} 32. Ka2 {[%clk 0:01:11.1]} 32... Rxf3 {[%clk 0:00:06.9]} 33.
Rdc4 {[%clk 0:01:08.9]} 33... Rff1 {[%clk 0:00:06.8]} 34. Rxc7+ {[%clk
0:01:08.5]} 34... Kd6 {[%clk 0:00:07.5]} 35. R7c5 {[%clk 0:00:51.6]} 35... f4
{[%clk 0:00:07]} 36. a4 {[%clk 0:00:48.7]} 36... f3 {[%clk 0:00:06.8]} 37. Rc6+
{[%clk 0:00:48.7]} 37... Kxd5 {[%clk 0:00:06.5]} 38. Rxh6 {[%clk 0:00:49.3]}
38... f2 {[%clk 0:00:06.2]} 39. Rf6 {[%clk 0:00:49.6]} 39... Ra1+ {[%clk
0:00:04.8]} 40. Kb3 {[%clk 0:00:50.1]} 40... Rxa4 {[%clk 0:00:01.8]} 41. Rcxf2
{[%clk 0:00:47.2]} 41... Rxf2 {[%clk 0:00:02]} 42. Rxf2 {[%clk 0:00:47.8]} 42...
Rd4 {[%clk 0:00:01.7]} 43. Rf5+ {[%clk 0:00:47.2]} 43... Ke4 {[%clk 0:00:01]}
44. Rxg5 {[%clk 0:00:48.1]} 44... Rd2 {[%clk 0:00:01.3]} 45. Rh5 {[%clk
0:00:47.5]} 45... Kd4 {[%clk 0:00:01.1]} 46. Ka3 {[%clk 0:00:47.5]} 46... Kc4
{[%clk 0:00:01.3]} 47. b3+ {[%clk 0:00:47.8]} 47... Kc3 {[%clk 0:00:01.7]} 48.
Rh3+ {[%clk 0:00:48.2]} 48... Kc2 {[%clk 0:00:01.8]} 49. b4 {[%clk 0:00:47.5]}
1-0